[Event "Late-Titled-Tuesday-Blitz-September-05-2023"]
[Site "Chess.com"]
[Date "2023.09.05"]
[Round "8"]
[White "Good_Knight_Kiss"]
[Black "NoGalloNoParty"]
[Result "0-1"]
[WhiteElo "2331"]
[BlackElo "2546"]
[TimeControl "180+1"]
[EndTime "15:27:54 PDT"]
[Termination "NoGalloNoParty won by checkmate"]

1. e4 {[%clk 0:03:00.9]} 1... c5 {[%clk 0:02:59.4]} 2. Nf3 {[%clk 0:02:57.7]}
2... Nc6 {[%clk 0:02:56.5]} 3. d4 {[%clk 0:02:57.8]} 3... cxd4 {[%clk
0:02:56.5]} 4. Nxd4 {[%clk 0:02:58.4]} 4... e5 {[%clk 0:02:56]} 5. Nb5 {[%clk
0:02:58.2]} 5... a6 {[%clk 0:02:48.6]} 6. Nd6+ {[%clk 0:02:57.7]} 6... Bxd6
{[%clk 0:02:48.5]} 7. Qxd6 {[%clk 0:02:58.6]} 7... Qf6 {[%clk 0:02:48.8]} 8. Qd1
{[%clk 0:02:55.7]} 8... Qg6 {[%clk 0:02:47.2]} 9. Nc3 {[%clk 0:02:44.6]} 9... d5
{[%clk 0:02:46.5]} 10. Nxd5 {[%clk 0:02:39.1]} 10... Qxe4+ {[%clk 0:02:45.3]}
11. Be3 {[%clk 0:02:39.4]} 11... Nd4 {[%clk 0:02:40.4]} 12. Nc7+ {[%clk
0:02:37.8]} 12... Ke7 {[%clk 0:02:40.1]} 13. Rc1 {[%clk 0:02:36.9]} 13... Bh3
{[%clk 0:02:29.8]} 14. Nxa8 {[%clk 0:01:10.1]} 14... Nf6 {[%clk 0:02:25.7]} 15.
Qd3 {[%clk 0:00:58]} 15... Bxg2 {[%clk 0:02:22.9]} 16. Qa3+ {[%clk 0:00:29.3]}
16... Kd8 {[%clk 0:02:05.9]} 17. Bxg2 {[%clk 0:00:22.2]} 17... Qxg2 {[%clk
0:02:03.4]} 18. Qd6+ {[%clk 0:00:18]} 18... Nd7 {[%clk 0:01:58.9]} 19. Kd2
{[%clk 0:00:08.6]} 19... Nb5 {[%clk 0:01:28.6]} 20. Bb6+ {[%clk 0:00:06.6]}
20... Kc8 {[%clk 0:01:23.7]} 21. Qd3 {[%clk 0:00:03.2]} 21... Kb8 {[%clk
0:01:02.9]} 22. Rhg1 {[%clk 0:00:02.6]} 22... Qc6 {[%clk 0:00:59.3]} 23. Qg3
{[%clk 0:00:02.1]} 23... Kxa8 {[%clk 0:00:56.1]} 24. Be3 {[%clk 0:00:02.3]}
24... Rd8 {[%clk 0:00:55.8]} 25. c3 {[%clk 0:00:02.8]} 25... Nc5+ {[%clk
0:00:54]} 26. Kc2 {[%clk 0:00:03.2]} 26... Qe4# {[%clk 0:00:53.9]} 0-1

[Event "Late-Titled-Tuesday-Blitz-September-05-2023"]
[Site "Chess.com"]
[Date "2023.09.05"]
[Round "8"]
[White "in_shambles"]
[Black "allvim"]
[Result "0-1"]
[WhiteElo "2111"]
[BlackElo "2288"]
[TimeControl "180+1"]
[EndTime "15:27:57 PDT"]
[Termination "allvim won by resignation"]

1. d4 {[%clk 0:02:52]} 1... Nf6 {[%clk 0:03:00.1]} 2. c4 {[%clk 0:02:50.5]} 2...
g6 {[%clk 0:02:56.5]} 3. Nc3 {[%clk 0:02:50.3]} 3... d5 {[%clk 0:02:57]} 4. cxd5
{[%clk 0:02:50.5]} 4... Nxd5 {[%clk 0:02:57.9]} 5. e4 {[%clk 0:02:51.1]} 5...
Nxc3 {[%clk 0:02:58.5]} 6. bxc3 {[%clk 0:02:52]} 6... Bg7 {[%clk 0:02:59.4]} 7.
Bc4 {[%clk 0:02:51.3]} 7... c5 {[%clk 0:02:59.9]} 8. Ne2 {[%clk 0:02:51.5]} 8...
O-O {[%clk 0:03:00.5]} 9. O-O {[%clk 0:02:50.5]} 9... Qa5 {[%clk 0:03:01.2]} 10.
Be3 {[%clk 0:02:49]} 10... Nc6 {[%clk 0:02:55.7]} 11. Rc1 {[%clk 0:02:45.7]}
11... a6 {[%clk 0:02:42.1]} 12. dxc5 {[%clk 0:02:16.3]} 12... Ne5 {[%clk
0:02:24.2]} 13. Bd5 {[%clk 0:02:03]} 13... Rd8 {[%clk 0:01:48.5]} 14. Qc2 {[%clk
0:01:23.3]} 14... e6 {[%clk 0:01:29.2]} 15. Bb3 {[%clk 0:01:22.6]} 15... Bd7
{[%clk 0:01:29.6]} 16. f3 {[%clk 0:01:05.8]} 16... Bb5 {[%clk 0:01:22.9]} 17. c4
{[%clk 0:00:56.3]} 17... Bc6 {[%clk 0:01:16.8]} 18. Bd2 {[%clk 0:00:51.7]} 18...
Qxd2 {[%clk 0:01:12.9]} 19. Qxd2 {[%clk 0:00:45.5]} 19... Rxd2 {[%clk
0:01:13.8]} 20. Ng3 {[%clk 0:00:23.7]} 20... Rad8 {[%clk 0:01:10.5]} 21. h4
{[%clk 0:00:19.7]} 21... h5 {[%clk 0:01:07.8]} 22. Kh2 {[%clk 0:00:18.6]} 22...
Nd3 {[%clk 0:01:02.6]} 23. Rcd1 {[%clk 0:00:18.3]} 23... Nf4 {[%clk 0:01:03.1]}
24. Rxd2 {[%clk 0:00:17.6]} 24... Rxd2 {[%clk 0:01:04]} 25. Kh1 {[%clk
0:00:16.6]} 25... Nxg2 {[%clk 0:01:01.1]} 26. Rg1 {[%clk 0:00:15.1]} 26... Nxh4
{[%clk 0:00:59.5]} 27. Bd1 {[%clk 0:00:11.8]} 27... Bd4 {[%clk 0:00:56.1]} 28.
Re1 {[%clk 0:00:10.5]} 28... Bf2 {[%clk 0:00:55.6]} 0-1

[Event "Late-Titled-Tuesday-Blitz-September-05-2023"]
[Site "Chess.com"]
[Date "2023.09.05"]
[Round "8"]
[White "rquery98"]
[Black "Bobbybunny"]
[Result "1-0"]
[WhiteElo "2662"]
[BlackElo "2226"]
[TimeControl "180+1"]
[EndTime "15:28:12 PDT"]
[Termination "rquery98 won by checkmate"]

1. Nf3 {[%clk 0:03:00.9]} 1... c5 {[%clk 0:02:57.2]} 2. g3 {[%clk 0:03:01.8]}
2... Nc6 {[%clk 0:02:56.1]} 3. c4 {[%clk 0:03:02.4]} 3... g6 {[%clk 0:02:56.1]}
4. Bg2 {[%clk 0:03:02.9]} 4... Bg7 {[%clk 0:02:56.4]} 5. Nc3 {[%clk 0:03:03.8]}
5... e5 {[%clk 0:02:53.4]} 6. h4 {[%clk 0:02:58.9]} 6... h6 {[%clk 0:02:52.5]}
7. O-O {[%clk 0:02:58.8]} 7... d6 {[%clk 0:02:52.4]} 8. a3 {[%clk 0:02:58.7]}
8... Nge7 {[%clk 0:02:46.1]} 9. b4 {[%clk 0:02:59]} 9... O-O {[%clk 0:02:41.6]}
10. Rb1 {[%clk 0:02:51.5]} 10... b6 {[%clk 0:02:34.9]} 11. d3 {[%clk 0:02:08.9]}
11... Be6 {[%clk 0:02:24.3]} 12. Bd2 {[%clk 0:02:04.8]} 12... Rc8 {[%clk
0:02:23.1]} 13. Ne1 {[%clk 0:01:53.5]} 13... Qd7 {[%clk 0:02:06.3]} 14. Nc2
{[%clk 0:01:52.5]} 14... d5 {[%clk 0:02:00.4]} 15. cxd5 {[%clk 0:01:49.7]} 15...
Nxd5 {[%clk 0:02:00.1]} 16. bxc5 {[%clk 0:01:49.5]} 16... bxc5 {[%clk
0:01:58.8]} 17. Ne4 {[%clk 0:01:49.5]} 17... Nd4 {[%clk 0:01:54.6]} 18. e3
{[%clk 0:01:39.7]} 18... Nxc2 {[%clk 0:01:42.3]} 19. Qxc2 {[%clk 0:01:40.6]}
19... Qe7 {[%clk 0:01:22.8]} 20. Rfc1 {[%clk 0:01:37.5]} 20... Rfd8 {[%clk
0:01:09.4]} 21. Ba5 {[%clk 0:01:35.4]} 21... Nb6 {[%clk 0:01:04.5]} 22. Bxb6
{[%clk 0:01:30]} 22... axb6 {[%clk 0:01:03.9]} 23. Rxb6 {[%clk 0:01:30.9]} 23...
c4 {[%clk 0:00:59.4]} 24. dxc4 {[%clk 0:01:20.8]} 24... Rxc4 {[%clk 0:00:56.3]}
25. Qb2 {[%clk 0:01:21.2]} 25... Rxc1+ {[%clk 0:00:45.3]} 26. Qxc1 {[%clk
0:01:22.1]} 26... Rd3 {[%clk 0:00:37.9]} 27. Nc5 {[%clk 0:01:03]} 27... Rd6
{[%clk 0:00:28.3]} 28. Rb7 {[%clk 0:00:55.8]} 28... Qd8 {[%clk 0:00:21.7]} 29.
Nxe6 {[%clk 0:00:51.9]} 29... Rd1+ {[%clk 0:00:16]} 30. Kh2 {[%clk 0:00:52.3]}
30... fxe6 {[%clk 0:00:15.6]} 31. Qc4 {[%clk 0:00:51.3]} 31... Kh7 {[%clk
0:00:13.4]} 32. Qxe6 {[%clk 0:00:50.6]} 32... Qf8 {[%clk 0:00:12.5]} 33. Rf7
{[%clk 0:00:47.7]} 33... Qd8 {[%clk 0:00:09.8]} 34. Be4 {[%clk 0:00:46.8]} 34...
Rd2 {[%clk 0:00:08.5]} 35. Qxg6+ {[%clk 0:00:46.8]} 35... Kh8 {[%clk 0:00:07.2]}
36. Qxg7# {[%clk 0:00:47.7]} 1-0

[Event "Late-Titled-Tuesday-Blitz-September-05-2023"]
[Site "Chess.com"]
[Date "2023.09.05"]
[Round "8"]
[White "pouya21"]
[Black "ural58"]
[Result "1-0"]
[WhiteElo "2809"]
[BlackElo "2543"]
[TimeControl "180+1"]
[EndTime "15:28:17 PDT"]
[Termination "pouya21 won by resignation"]

1. e4 {[%clk 0:03:00.9]} 1... d5 {[%clk 0:02:57.5]} 2. exd5 {[%clk 0:03:00.4]}
2... Qxd5 {[%clk 0:02:56.8]} 3. Nc3 {[%clk 0:03:00.8]} 3... Qd6 {[%clk
0:02:56.7]} 4. d4 {[%clk 0:02:59.6]} 4... c6 {[%clk 0:02:56.9]} 5. h3 {[%clk
0:02:57.5]} 5... Nf6 {[%clk 0:02:53.5]} 6. Nf3 {[%clk 0:02:57.2]} 6... Bf5
{[%clk 0:02:51.5]} 7. Ne5 {[%clk 0:02:54.7]} 7... e6 {[%clk 0:02:51.2]} 8. g4
{[%clk 0:02:53.1]} 8... Bg6 {[%clk 0:02:50.2]} 9. h4 {[%clk 0:02:53.3]} 9...
Nbd7 {[%clk 0:02:43.9]} 10. Bf4 {[%clk 0:02:34.5]} 10... Nxe5 {[%clk 0:02:39.3]}
11. dxe5 {[%clk 0:02:15.7]} 11... Qb4 {[%clk 0:02:37.3]} 12. Bd2 {[%clk
0:02:04.8]} 12... Nxg4 {[%clk 0:02:24.2]} 13. h5 {[%clk 0:01:50.9]} 13... Qd4
{[%clk 0:02:03.7]} 14. Qe2 {[%clk 0:01:42.2]} 14... Bxc2 {[%clk 0:02:01.4]} 15.
Rh4 {[%clk 0:01:34.9]} 15... Bf5 {[%clk 0:01:52.7]} 16. Bh3 {[%clk 0:01:22.6]}
16... Qxe5 {[%clk 0:01:08.4]} 17. Bxg4 {[%clk 0:01:14.4]} 17... Qxe2+ {[%clk
0:01:08]} 18. Bxe2 {[%clk 0:01:13.5]} 18... O-O-O {[%clk 0:01:05.8]} 19. Be3
{[%clk 0:01:11.7]} 19... b6 {[%clk 0:01:02.6]} 20. Rc4 {[%clk 0:01:10.2]} 20...
Kb7 {[%clk 0:00:59.2]} 21. Bf3 {[%clk 0:01:08.8]} 21... Rc8 {[%clk 0:00:58.3]}
22. Rd1 {[%clk 0:01:07.7]} 22... e5 {[%clk 0:00:58]} 23. Nb5 {[%clk 0:00:49.5]}
23... e4 {[%clk 0:00:57.5]} 24. Nd4 {[%clk 0:00:45.4]} 24... g6 {[%clk
0:00:48.3]} 25. Nxf5 {[%clk 0:00:43.7]} 25... gxf5 {[%clk 0:00:48.4]} 26. Bg2
{[%clk 0:00:42.5]} 26... Rg8 {[%clk 0:00:47.1]} 27. Kf1 {[%clk 0:00:41.3]} 27...
Bg7 {[%clk 0:00:42.6]} 28. Bh3 {[%clk 0:00:39.3]} 28... Bxb2 {[%clk 0:00:33.8]}
29. Bxf5 {[%clk 0:00:39.2]} 29... Rc7 {[%clk 0:00:32.1]} 30. Bxe4 {[%clk
0:00:38.6]} 30... b5 {[%clk 0:00:26.4]} 31. Rxc6 {[%clk 0:00:36.4]} 31... Rxc6
{[%clk 0:00:25.6]} 32. Rd7+ {[%clk 0:00:36.9]} 32... Kc8 {[%clk 0:00:20.6]} 33.
Bxc6 {[%clk 0:00:37.4]} 1-0

[Event "Late-Titled-Tuesday-Blitz-September-05-2023"]
[Site "Chess.com"]
[Date "2023.09.05"]
[Round "8"]
[White "NelsonLinda"]
[Black "Witik"]
[Result "1-0"]
[WhiteElo "2511"]
[BlackElo "2660"]
[TimeControl "180+1"]
[EndTime "15:28:19 PDT"]
[Termination "NelsonLinda won on time"]

1. b3 {[%clk 0:03:00.9]} 1... d5 {[%clk 0:02:58.5]} 2. Bb2 {[%clk 0:03:00.1]}
2... Bg4 {[%clk 0:02:59.2]} 3. f3 {[%clk 0:03:00.3]} 3... Bh5 {[%clk 0:02:56.9]}
4. h4 {[%clk 0:03:00.5]} 4... f6 {[%clk 0:02:56.6]} 5. d4 {[%clk 0:02:56.9]}
5... e5 {[%clk 0:02:49.3]} 6. dxe5 {[%clk 0:02:55.1]} 6... Nc6 {[%clk
0:02:49.3]} 7. e4 {[%clk 0:02:51.5]} 7... dxe4 {[%clk 0:02:41.2]} 8. Qxd8+
{[%clk 0:02:50.4]} 8... Rxd8 {[%clk 0:02:41.1]} 9. Bb5 {[%clk 0:02:50.5]} 9...
Bc5 {[%clk 0:02:13.8]} 10. Nd2 {[%clk 0:02:29.5]} 10... f5 {[%clk 0:01:31.2]}
11. Nh3 {[%clk 0:01:33.7]} 11... exf3 {[%clk 0:00:44.8]} 12. Nxf3 {[%clk
0:01:33.4]} 12... Ne7 {[%clk 0:00:37.9]} 13. Nf4 {[%clk 0:01:33.6]} 13... Bxf3
{[%clk 0:00:31.2]} 14. gxf3 {[%clk 0:01:34.5]} 14... Bb4+ {[%clk 0:00:05.6]} 15.
c3 {[%clk 0:01:31.3]} 15... Ba5 {[%clk 0:00:06.1]} 16. Ne6 {[%clk 0:01:26.4]}
16... Rd5 {[%clk 0:00:06.4]} 17. Bc4 {[%clk 0:01:14.9]} 17... Rxe5+ {[%clk
0:00:06.6]} 18. Kd2 {[%clk 0:01:15.5]} 18... b5 {[%clk 0:00:05.6]} 19. f4 {[%clk
0:00:52.4]} 19... Re4 {[%clk 0:00:03.7]} 20. Nxg7+ {[%clk 0:00:49.6]} 20... Kd7
{[%clk 0:00:04.2]} 21. Bd3 {[%clk 0:00:47.5]} 21... Rxf4 {[%clk 0:00:04.4]} 22.
Rad1 {[%clk 0:00:43.1]} 22... Rd8 {[%clk 0:00:03.5]} 23. Kc1 {[%clk 0:00:42.2]}
23... Kc8 {[%clk 0:00:01.8]} 24. Ne6 {[%clk 0:00:42.5]} 24... Rxd3 {[%clk
0:00:02]} 25. Nxf4 {[%clk 0:00:41.9]} 25... Rf3 {[%clk 0:00:01.6]} 26. Rhf1
{[%clk 0:00:40.9]} 26... Rg3 {[%clk 0:00:01.1]} 27. Rd3 {[%clk 0:00:40.7]} 27...
Rg4 {[%clk 0:00:01.1]} 28. h5 {[%clk 0:00:40.1]} 1-0

[Event "Late-Titled-Tuesday-Blitz-September-05-2023"]
[Site "Chess.com"]
[Date "2023.09.05"]
[Round "8"]
[White "DenizSeyhanoglu1"]
[Black "Haykoooo0o"]
[Result "0-1"]
[WhiteElo "2323"]
[BlackElo "2491"]
[TimeControl "180+1"]
[EndTime "15:28:21 PDT"]
[Termination "Haykoooo0o won by resignation"]

1. e4 {[%clk 0:02:56.7]} 1... c6 {[%clk 0:02:39.2]} 2. d4 {[%clk 0:02:55.9]}
2... d5 {[%clk 0:02:40.1]} 3. exd5 {[%clk 0:02:56.6]} 3... cxd5 {[%clk
0:02:40.8]} 4. c4 {[%clk 0:02:57.5]} 4... Nf6 {[%clk 0:02:40.7]} 5. Nc3 {[%clk
0:02:57.6]} 5... Nc6 {[%clk 0:02:41.3]} 6. Bg5 {[%clk 0:02:57.6]} 6... Be6
{[%clk 0:02:40.7]} 7. a3 {[%clk 0:02:55.1]} 7... h6 {[%clk 0:02:36.9]} 8. Bh4
{[%clk 0:02:53.9]} 8... g5 {[%clk 0:02:36.8]} 9. Bg3 {[%clk 0:02:53.8]} 9...
dxc4 {[%clk 0:02:32.6]} 10. Nf3 {[%clk 0:02:43.7]} 10... Bg7 {[%clk 0:02:30.3]}
11. Ne5 {[%clk 0:02:35]} 11... Qxd4 {[%clk 0:02:12.2]} 12. Nxc6 {[%clk
0:02:26.6]} 12... Qxd1+ {[%clk 0:02:11.5]} 13. Rxd1 {[%clk 0:02:27.5]} 13...
bxc6 {[%clk 0:02:11.8]} 14. Be5 {[%clk 0:02:23.3]} 14... O-O {[%clk 0:02:04.7]}
15. Be2 {[%clk 0:02:22.6]} 15... Rfd8 {[%clk 0:01:58.2]} 16. O-O {[%clk
0:02:22]} 16... Nd5 {[%clk 0:01:47.8]} 17. Bxg7 {[%clk 0:02:20.2]} 17... Kxg7
{[%clk 0:01:46.4]} 18. Ne4 {[%clk 0:02:18.5]} 18... Nf4 {[%clk 0:01:39.3]} 19.
Bf3 {[%clk 0:02:13.3]} 19... Bd5 {[%clk 0:01:38.6]} 20. g3 {[%clk 0:02:09.5]}
20... Nd3 {[%clk 0:01:27.2]} 21. b3 {[%clk 0:02:00.8]} 21... Bxe4 {[%clk
0:00:54.9]} 22. Bxe4 {[%clk 0:01:59.7]} 22... Nc5 {[%clk 0:00:54.4]} 23. Bxc6
{[%clk 0:01:57.9]} 23... Rxd1 {[%clk 0:00:50.3]} 24. Rxd1 {[%clk 0:01:54.4]}
24... Rc8 {[%clk 0:00:48.7]} 25. Bd5 {[%clk 0:01:33.1]} 25... cxb3 {[%clk
0:00:43.5]} 26. Rb1 {[%clk 0:01:33]} 26... Rb8 {[%clk 0:00:40.6]} 27. a4 {[%clk
0:01:32.8]} 27... a5 {[%clk 0:00:34.3]} 28. Kf1 {[%clk 0:01:32.1]} 28... e6
{[%clk 0:00:24.1]} 29. Bc6 {[%clk 0:01:32]} 29... Rb4 {[%clk 0:00:19.8]} 30. Ke2
{[%clk 0:01:29.2]} 30... Nxa4 {[%clk 0:00:18.1]} 31. Bxa4 {[%clk 0:01:30.1]}
31... Rxa4 {[%clk 0:00:18.5]} 32. Rxb3 {[%clk 0:01:30.1]} 32... Ra1 {[%clk
0:00:18.2]} 33. h4 {[%clk 0:01:26.3]} 33... a4 {[%clk 0:00:17.5]} 34. Rb4 {[%clk
0:01:22.9]} 34... a3 {[%clk 0:00:17.9]} 35. Ra4 {[%clk 0:01:22.8]} 35... a2
{[%clk 0:00:18.3]} 36. hxg5 {[%clk 0:01:22.6]} 36... hxg5 {[%clk 0:00:18.8]} 37.
Kf3 {[%clk 0:01:22.7]} 37... f5 {[%clk 0:00:17.7]} 38. Ra6 {[%clk 0:01:17.9]}
38... Kf6 {[%clk 0:00:17.4]} 39. Ra5 {[%clk 0:01:18.2]} 39... e5 {[%clk
0:00:16.8]} 40. Ra6+ {[%clk 0:01:18.2]} 40... Ke7 {[%clk 0:00:17.3]} 41. Ra7+
{[%clk 0:01:17.1]} 41... Kd6 {[%clk 0:00:17.6]} 42. Ra6+ {[%clk 0:01:16.8]}
42... Kc5 {[%clk 0:00:18.1]} 43. Ra8 {[%clk 0:01:13.1]} 43... e4+ {[%clk
0:00:18.1]} 44. Ke2 {[%clk 0:01:10.1]} 44... f4 {[%clk 0:00:18.1]} 45. gxf4
{[%clk 0:01:08.7]} 45... gxf4 {[%clk 0:00:19]} 46. Ra5+ {[%clk 0:01:05.6]} 46...
Kb4 {[%clk 0:00:18.9]} 47. Ra8 {[%clk 0:01:05.5]} 47... f3+ {[%clk 0:00:18.3]}
48. Kd2 {[%clk 0:01:05.8]} 48... Rf1 {[%clk 0:00:18.3]} 0-1

[Event "Late-Titled-Tuesday-Blitz-September-05-2023"]
[Site "Chess.com"]
[Date "2023.09.05"]
[Round "8"]
[White "arminmusovic"]
[Black "Francisco_Ferrari"]
[Result "1-0"]
[WhiteElo "2539"]
[BlackElo "2171"]
[TimeControl "180+1"]
[EndTime "15:28:22 PDT"]
[Termination "arminmusovic won by resignation"]

1. a3 {[%clk 0:02:55.4]} 1... a5 {[%clk 0:02:57.1]} 2. Nc3 {[%clk 0:02:55.1]}
2... Nc6 {[%clk 0:02:56.9]} 3. e4 {[%clk 0:02:55.5]} 3... g6 {[%clk 0:02:52.9]}
4. Bc4 {[%clk 0:02:55]} 4... Bg7 {[%clk 0:02:51.9]} 5. d3 {[%clk 0:02:55.5]}
5... Nf6 {[%clk 0:02:49.2]} 6. Nge2 {[%clk 0:02:55.5]} 6... O-O {[%clk
0:02:48.2]} 7. O-O {[%clk 0:02:55.4]} 7... d6 {[%clk 0:02:47.6]} 8. h3 {[%clk
0:02:54.2]} 8... Ne5 {[%clk 0:02:46.4]} 9. Ba2 {[%clk 0:02:54]} 9... c6 {[%clk
0:02:46.6]} 10. f4 {[%clk 0:02:54]} 10... Ned7 {[%clk 0:02:46.2]} 11. f5 {[%clk
0:02:36.5]} 11... b5 {[%clk 0:02:43.6]} 12. fxg6 {[%clk 0:02:34.7]} 12... hxg6
{[%clk 0:02:43.2]} 13. Nf4 {[%clk 0:02:35.4]} 13... b4 {[%clk 0:02:38.3]} 14.
axb4 {[%clk 0:01:42.1]} 14... axb4 {[%clk 0:02:39.2]} 15. Bxf7+ {[%clk
0:01:42.3]} 15... Kxf7 {[%clk 0:02:27.5]} 16. Rxa8 {[%clk 0:01:43.2]} 16... Qb6+
{[%clk 0:02:21.3]} 17. Kh1 {[%clk 0:01:39.2]} 17... bxc3 {[%clk 0:02:21.3]} 18.
bxc3 {[%clk 0:01:39.1]} 18... Bb7 {[%clk 0:02:14.1]} 19. Ra3 {[%clk 0:00:56.8]}
19... Rh8 {[%clk 0:01:41.9]} 20. Rb3 {[%clk 0:00:40.6]} 20... Qc7 {[%clk
0:01:41.6]} 21. Qe2 {[%clk 0:00:33.6]} 21... e5 {[%clk 0:01:20.4]} 22. d4 {[%clk
0:00:28]} 22... exf4 {[%clk 0:01:19.8]} 23. Bxf4 {[%clk 0:00:28.9]} 23... Ke7
{[%clk 0:00:59.6]} 24. Bg5 {[%clk 0:00:22.7]} 24... Rf8 {[%clk 0:00:48.2]} 25.
e5 {[%clk 0:00:21.2]} 25... dxe5 {[%clk 0:00:49.1]} 26. dxe5 {[%clk 0:00:20.6]}
26... Nxe5 {[%clk 0:00:49.3]} 27. Rxb7 {[%clk 0:00:20.3]} 27... Kd7 {[%clk
0:00:49.4]} 28. Rxc7+ {[%clk 0:00:19.9]} 28... Kxc7 {[%clk 0:00:45.1]} 29. Qxe5+
{[%clk 0:00:19.5]} 29... Kd7 {[%clk 0:00:45.1]} 30. Bxf6 {[%clk 0:00:19.5]}
30... Bxf6 {[%clk 0:00:45.6]} 31. Rxf6 {[%clk 0:00:19.8]} 31... Re8 {[%clk
0:00:46.1]} 32. Rd6+ {[%clk 0:00:20]} 32... Kc7 {[%clk 0:00:46.4]} 33. Qxe8
{[%clk 0:00:20.5]} 1-0

[Event "Late-Titled-Tuesday-Blitz-September-05-2023"]
[Site "Chess.com"]
[Date "2023.09.05"]
[Round "8"]
[White "Grossboss19"]
[Black "Sinquefield"]
[Result "1-0"]
[WhiteElo "2496"]
[BlackElo "2460"]
[TimeControl "180+1"]
[EndTime "15:28:23 PDT"]
[Termination "Grossboss19 won by resignation"]

1. e4 {[%clk 0:02:59.7]} 1... d5 {[%clk 0:02:59.9]} 2. e5 {[%clk 0:02:58.8]}
2... c5 {[%clk 0:02:59.1]} 3. c4 {[%clk 0:02:58.1]} 3... d4 {[%clk 0:02:58.1]}
4. f4 {[%clk 0:02:56.5]} 4... Nc6 {[%clk 0:02:53.7]} 5. d3 {[%clk 0:02:53.3]}
5... f6 {[%clk 0:02:52.9]} 6. exf6 {[%clk 0:02:50.4]} 6... Nxf6 {[%clk
0:02:51.5]} 7. Be2 {[%clk 0:02:46]} 7... e5 {[%clk 0:02:49.9]} 8. fxe5 {[%clk
0:02:31.7]} 8... Nxe5 {[%clk 0:02:50.8]} 9. Nf3 {[%clk 0:02:29.6]} 9... Bd6
{[%clk 0:02:47.4]} 10. O-O {[%clk 0:02:28.3]} 10... Qc7 {[%clk 0:02:44.9]} 11.
Nxe5 {[%clk 0:02:07.2]} 11... Bxe5 {[%clk 0:02:42.6]} 12. g3 {[%clk 0:02:07.6]}
12... Bh3 {[%clk 0:02:05.5]} 13. Re1 {[%clk 0:02:00]} 13... Bxg3 {[%clk
0:01:38.8]} 14. Bf1+ {[%clk 0:01:52.9]} 14... Bxe1 {[%clk 0:01:38.3]} 15. Qxe1+
{[%clk 0:01:49.3]} 15... Kf7 {[%clk 0:01:12.2]} 16. Bxh3 {[%clk 0:01:47]} 16...
Rae8 {[%clk 0:01:09.9]} 17. Qf2 {[%clk 0:01:42.2]} 17... Rhf8 {[%clk 0:01:09.1]}
18. Bf4 {[%clk 0:01:38.3]} 18... Qb6 {[%clk 0:01:03.9]} 19. Nd2 {[%clk
0:01:24.5]} 19... Qxb2 {[%clk 0:01:01.9]} 20. Rb1 {[%clk 0:01:23.1]} 20... Qc2
{[%clk 0:01:00.5]} 21. Rxb7+ {[%clk 0:01:21.7]} 21... Kg8 {[%clk 0:01:00.5]} 22.
Qg2 {[%clk 0:01:06.2]} 22... Re1+ {[%clk 0:00:13.5]} 23. Nf1 {[%clk 0:01:02.8]}
23... Rxf1+ {[%clk 0:00:08.4]} 24. Qxf1 {[%clk 0:00:53.8]} 24... Nh5 {[%clk
0:00:06.7]} 25. Rb8 {[%clk 0:00:40]} 25... Nxf4 {[%clk 0:00:02.9]} 26. Rxf8+
{[%clk 0:00:39.3]} 26... Kxf8 {[%clk 0:00:03.4]} 27. Qxf4+ {[%clk 0:00:39.6]}
27... Ke7 {[%clk 0:00:03.6]} 28. Qe5+ {[%clk 0:00:38.1]} 28... Kd8 {[%clk
0:00:02.9]} 29. Qd6+ {[%clk 0:00:38.3]} 29... Ke8 {[%clk 0:00:03.5]} 30. Qc6+
{[%clk 0:00:38.1]} 30... Kf8 {[%clk 0:00:02.9]} 31. Qxc5+ {[%clk 0:00:38.2]}
31... Kf7 {[%clk 0:00:03.1]} 32. Qf5+ {[%clk 0:00:38]} 1-0

[Event "Late-Titled-Tuesday-Blitz-September-05-2023"]
[Site "Chess.com"]
[Date "2023.09.05"]
[Round "8"]
[White "Quattroporte300"]
[Black "karinachess1"]
[Result "0-1"]
[WhiteElo "2388"]
[BlackElo "2555"]
[TimeControl "180+1"]
[EndTime "15:28:30 PDT"]
[Termination "karinachess1 won on time"]

1. e4 {[%clk 0:03:00.9]} 1... c5 {[%clk 0:02:59.5]} 2. Nf3 {[%clk 0:03:00]} 2...
a6 {[%clk 0:03:00]} 3. c3 {[%clk 0:02:52]} 3... d5 {[%clk 0:02:59.9]} 4. exd5
{[%clk 0:02:51.2]} 4... Qxd5 {[%clk 0:03:00.8]} 5. d4 {[%clk 0:02:51.8]} 5...
Bg4 {[%clk 0:03:00.9]} 6. Be2 {[%clk 0:02:51]} 6... Nf6 {[%clk 0:03:01]} 7. O-O
{[%clk 0:02:50.7]} 7... e6 {[%clk 0:03:00.7]} 8. h3 {[%clk 0:02:50.1]} 8... Bh5
{[%clk 0:03:00.5]} 9. Be3 {[%clk 0:02:47]} 9... Nbd7 {[%clk 0:03:00.3]} 10. c4
{[%clk 0:02:34.2]} 10... Qd6 {[%clk 0:03:00.5]} 11. Nc3 {[%clk 0:02:33.3]} 11...
cxd4 {[%clk 0:02:56.5]} 12. Nxd4 {[%clk 0:02:32.5]} 12... Bxe2 {[%clk
0:02:57.2]} 13. Qxe2 {[%clk 0:02:32.2]} 13... Be7 {[%clk 0:02:57.5]} 14. Rfd1
{[%clk 0:02:28.3]} 14... Qc7 {[%clk 0:02:57.8]} 15. Rac1 {[%clk 0:02:26.9]}
15... O-O {[%clk 0:02:57.9]} 16. Qf3 {[%clk 0:02:17.9]} 16... Rfe8 {[%clk
0:02:50.2]} 17. b3 {[%clk 0:02:12.1]} 17... h6 {[%clk 0:02:48.3]} 18. Bf4 {[%clk
0:02:08.8]} 18... Qa5 {[%clk 0:02:40.3]} 19. Bd2 {[%clk 0:01:48.6]} 19... Qc7
{[%clk 0:02:12.9]} 20. Bf4 {[%clk 0:01:47.2]} 20... Qc8 {[%clk 0:02:13.4]} 21.
Re1 {[%clk 0:01:40.9]} 21... Ba3 {[%clk 0:02:10.9]} 22. Rcd1 {[%clk 0:00:47.5]}
22... e5 {[%clk 0:02:08.6]} 23. Nf5 {[%clk 0:00:40.5]} 23... exf4 {[%clk
0:02:03.8]} 24. Qxf4 {[%clk 0:00:40.8]} 24... Rxe1+ {[%clk 0:01:51.4]} 25. Rxe1
{[%clk 0:00:40.3]} 25... Qf8 {[%clk 0:01:51.6]} 26. Re3 {[%clk 0:00:34.5]} 26...
Re8 {[%clk 0:01:33.8]} 27. Rg3 {[%clk 0:00:32.8]} 27... Re1+ {[%clk 0:01:34]}
28. Kh2 {[%clk 0:00:32.8]} 28... g5 {[%clk 0:01:23.8]} 29. Nd5 {[%clk 0:00:11]}
29... Nh5 {[%clk 0:01:17.5]} 30. Nxh6+ {[%clk 0:00:05]} 30... Qxh6 {[%clk
0:01:01.8]} 31. Rxg5+ {[%clk 0:00:05.2]} 31... Ng7 {[%clk 0:00:57.2]} 32. Qg4
{[%clk 0:00:01.7]} 32... Bd6+ {[%clk 0:00:50]} 33. g3 {[%clk 0:00:01.7]} 33...
Nf6 {[%clk 0:00:44.2]} 34. h4 {[%clk 0:00:02.2]} 34... Nxg4+ {[%clk 0:00:43.9]}
0-1